Cogmind - Beta 16 @@@ ROGUE MODE // 2025.11.29 @ 11:51:47 Player: Dadrick Result: Destroyed by G-73 Enforcer with Phase Gun Performance ------------- Evolutions (9) 4500 Regions Visited (26) 5200 Robots Destroyed (214) 1070 Value Destroyed (7010) 7010 Prototype IDs (115) 2300 Alien Tech Used (3) 600 Bonus (4668) 4668 TOTAL SCORE: 25348 Bonus ------- High Alert Combat Kills 399 Follower Combat Kills 2106 Network Hubs Disabled 200 Registered with UFD 300 Met Optimus in HQ 500 Met Zhirov 300 Built Enhanced Grunts 300 A7 Reached Mainframe 300 Met R17 at Cetus 500 Met R17 at Research 2000 Friendly Fire -2237 Cogmind --------- Core Integrity 0/1600 Matter 182/300 Energy 99/100 System Corruption 6% Temperature Cool (3) Movement Flying (34) Location -1/Access Parts ------- > --- POWER (2) -------- (None) > --- PROPULSION (8) --- Field Propulsion Array Field Propulsion Array Field Propulsion Array > --- UTILITY (10) ----- Experimental Optical Array Advanced Sensor Array Advanced Signal Interpreter Improved Melee Analysis Suite Advanced Target Analyzer Improved Power Shielding Advanced Hacking Suite Advanced System Shield Improved System Guard > --- WEAPON (5) ------- Compact Linear Accelerator Thunder Hammer > --- INVENTORY (5) ---- Enhanced Nova Cannon Peak State ------------ > --- POWER ------------ Micro Antimatter Reactor > --- PROPULSION ------- Field Propulsion Drive Cooled Nuclear Pulse Thruster Impulse Thruster Q-thruster Impulse Thruster Array > --- UTILITY ---------- Medium Storage Unit Experimental Optical Array Advanced Sensor Array Advanced Signal Interpreter Advanced Transmission Jammer Advanced Reaction Control System Advanced Hacking Suite Advanced System Shield A0-MCA's Component Scanner > --- WEAPON ----------- Compact HERF Cannon Compact Mass Driver Improved Plasma Cutter Ionic Axe > --- INVENTORY -------- Light Deuterium Engine Nuclear Pulse Thruster Advanced Sensor Array Experimental Targeting Computer Advanced Weapon Cycler Medium Regenerative Plating Graphene Brace Transdimensional Reconstructor Compact Mass Driver Micro-nuke Launcher [Rating: 143] Favorites ----------- Power Light Ion Engine Engine Light Ion Engine Power Core Micro Fission Core Reactor Micro Antimatter Reactor Propulsion Cooled Nuclear Pulse Thruster Leg Aluminum Leg Hover Unit Combat Linear Gravjet Flight Unit Cooled Nuclear Pulse Thruster Utility A0-MCA's Component Scanner Device Advanced Sensor Array Storage Medium Storage Unit Processor A0-MCA's Component Scanner Hackware Advanced System Shield Protection Makeshift Light Armor Plating Weapon Assault Rifle Energy Cannon Heavy Plasma Cannon Ballistic Gun Assault Rifle Ballistic Cannon Hardcell Cannon Launcher Mini Grenade Launcher Special Weapon Improved Plasma Cutter Impact Weapon Thunder Hammer Slashing Weapon Ionic Axe Piercing Weapon Enhanced Force Lance Build | -11 -10 -10 -10 -8 -8 -6 -6 -6 -5 -5 -5 -5 -5 -5 -5 -4 -4 -4 -4 -4 -4 -3 -3 -3 -2 -1 ------- Run | Yrd Mat Min Sub Rec Scr Fac Was Fac Fac Was Fac Ext Cet Arc Hub Fac Was Fac Upp Upp Zhi Pro Res Qua Res Acc Slots Evolved 18 | . . . . . . 8 . . 2 . . . . . . 2 . . . . . . 2 . 2 2 Power 1 | . . . . . . . . . . . . . . . . . . . . . . . 1 . . . Propulsion 6 | . . . . . . 3 . . 1 . . . . . . . . . . . . . . . . 2 Utility 8 | . . . . . . 4 . . 1 . . . . . . 1 . . . . . . 1 . 1 . Weapon 3 | . . . . . . 1 . . . . . . . . . 1 . . . . . . . . 1 . Parts Attached 164 | 7 5 3 9 1 3 10 1 10 6 . 14 6 3 2 2 8 5 1 2 . 1 2 9 8 12 34 Power 22 | 1 . . 1 1 1 2 . 2 1 . 2 2 . . . . 1 . . . . . . 2 1 5 Engine 9 | 1 . . 1 1 1 2 . 1 . . . 1 . . . . . . . . . . . . . 1 Core 7 | . . . . . . . . 1 1 . 2 1 . . . . . . . . . . . . 1 1 Reactor 6 | . . . . . . . . . . . . . . . . . 1 . . . . . . 2 . 3 Propulsion 45 | 2 1 1 2 . 2 2 . 1 2 . 4 1 . . 1 2 1 . . . . . 4 1 3 15 Treads . | . . . . . . . . . . . . . . . . . . . . . . . . . . . Leg 9 | 2 1 1 2 . 2 . . . . . . . . . . . . . . . . . . . . 1 Wheel . | . . . . . . . . . . . . . . . . . . . . . . . . . . . Hover 8 | . . . . . . . . . . . . . . . . . . . . . . . . . . 8 Flight 28 | . . . . . . 2 . 1 2 . 4 1 . . 1 2 1 . . . . . 4 1 3 6 Utility 58 | 2 2 . 2 . . 3 . 6 1 . 6 2 2 2 . 2 2 1 . . 1 1 3 4 6 10 Device 20 | 1 . . . . . 2 . 3 . . . 1 . 2 . . . 1 . . 1 1 2 3 . 3 Storage 5 | 1 1 . . . . . . . . . 1 . . . . . . . . . . . 1 . 1 . Processor 12 | . . . . . . 1 . 1 . . 1 . . . . . 1 . . . . . . 1 3 4 Hackware 10 | . . . . . . . . 1 1 . 2 . . . . 2 . . . . . . . . 2 2 Protection 11 | . 1 . 2 . . . . 1 . . 2 1 2 . . . 1 . . . . . . . . 1 Artifact . | . . . . . . . . . . . . . . . . . . . . . . . . . . . Weapon 39 | 2 2 2 4 . . 3 1 1 2 . 2 1 1 . 1 4 1 . 2 . . 1 2 1 2 4 Energy Gun . | . . . . . . . . . . . . . . . . . . . . . . . . . . . Energy Cannon 4 | . . . . . . . . . . . . . . . . . . . 1 . . . 1 . 1 1 Ballistic Gun 12 | 2 . 1 3 . . 2 . . . . . . . . 1 2 . . 1 . . . . . . . Ballistic Cannon 9 | . . . . . . . 1 1 . . 1 1 . . . 1 1 . . . . . 1 1 1 . Launcher 4 | . 1 1 . . . . . . . . . . . . . 1 . . . . . . . . . 1 Special Weapon 3 | . 1 . . . . . . . 1 . . . 1 . . . . . . . . . . . . . Impact Weapon 1 | . . . . . . . . . . . . . . . . . . . . . . . . . . 1 Slashing Weapon 5 | . . . 1 . . 1 . . 1 . 1 . . . . . . . . . . 1 . . . . Piercing Weapon 1 | . . . . . . . . . . . . . . . . . . . . . . . . . . 1 Special Melee Weapon . | . . . . . . . . . . . . . . . . . . . . . . . . . . . Unidentified Prototypes 4 | . . . . . . 1 . . . . . . . . . . . . . . 1 . . 1 . 1 Parts Lost 56 | . . . 1 1 . . . 2 1 . 1 3 . . . 4 . . . . . . 1 11 8 23 Power 11 | . . . 1 1 . . . 1 1 . 1 1 . . . . . . . . . . . 1 . 4 Propulsion 22 | . . . . . . . . . . . . 1 . . . 2 . . . . . . . 5 4 10 Utility 17 | . . . . . . . . 1 . . . 1 . . . . . . . . . . 1 3 4 7 Weapon 6 | . . . . . . . . . . . . . . . . 2 . . . . . . . 2 . 2 Highest Loss Streak 10 | . . . 1 1 . . . 1 1 . 1 3 . . . 2 . . . . . . 1 5 5 10 To Critical Strikes . | . . . . . . . . . . . . . . . . . . . . . . . . . . . Average Backups 9 | 2 11 15 13 12 12 5 5 4 4 5 6 9 10 10 10 9 9 9 10 10 10 10 9 7 5 4 Power . | . 1 1 . . . 1 2 1 . . . . 1 1 1 1 1 1 1 1 1 1 1 . . . Propulsion 1 | . 1 3 2 2 1 . . . . . . 1 1 1 1 . . 1 1 1 1 1 . . . . Utility 3 | . 2 4 5 5 5 1 1 1 2 2 2 3 3 3 3 3 4 4 5 5 5 5 4 3 1 1 Weapon 3 | 1 6 6 5 4 5 2 2 1 1 3 2 3 3 4 4 3 2 2 2 2 2 2 2 1 2 1 Tool/Special . | . . . . . . . . . . . . . . . . . . . . . . . . . . . Unused Backups 24 | . 3 1 1 . 2 1 . 2 1 . 1 . 4 . . . . 1 . . . . 3 3 . 1 Power 4 | . . . . . . . . . . . 1 . 1 . . . . . . . . . 1 1 . . Propulsion 2 | . 1 . . . . . . . . . . . . . . . . . . . . . 1 . . . Utility 10 | . . . . . 2 1 . . 1 . . . 3 . . . . 1 . . . . . 1 . 1 Weapon 7 | . 2 1 1 . . . . 2 . . . . . . . . . . . . . . 1 . . . Tool/Special 1 | . . . . . . . . . . . . . . . . . . . . . . . . 1 . . Average Slot Usage (%) 82 | . 99 99 99 99 100 56 55 61 65 70 82 87 88 87 88 81 79 83 85 89 87 91 85 75 48 41 Engine 6 | . 14 13 13 13 14 5 5 3 2 5 2 3 . . . . . . . . . . . . . 1 Core 1 | . . . . . . . . 1 2 . 1 1 5 5 5 5 2 . . . . . . . 1 . Leg 9 | . 27 27 28 28 28 . . . . . . . . . . . . . . . . . . . . . Flight 12 | . . . . . . 8 11 11 14 15 22 28 29 29 29 25 24 26 26 26 26 26 22 17 7 3 Device 6 | . 14 13 5 . . 9 11 12 10 10 7 4 5 6 5 5 5 5 5 5 5 9 11 13 9 3 Storage 6 | . 14 14 14 14 14 . . . . . 2 5 5 5 5 5 5 5 5 5 5 5 4 2 1 . Processor 7 | . . . . . . 4 5 9 10 10 11 11 11 11 11 10 12 15 15 15 15 15 14 15 20 18 Hackware 4 | . . . . . . . . 1 5 10 10 11 11 11 11 14 13 10 10 10 10 10 9 8 3 2 Protection 6 | . . . 8 14 14 10 11 11 10 10 9 5 5 3 5 4 1 4 5 5 4 . 1 . . . Ballistic Gun 9 | . 27 27 20 28 28 10 1 . . . . . . . 1 . . . 1 5 3 . . . . . Ballistic Cannon 2 | . . . . . . . 3 4 5 5 4 3 4 5 3 4 5 5 1 . . . 1 3 1 . Slashing Weapon 3 | . . . 6 . . 4 5 5 4 . 4 6 5 5 5 4 5 5 5 5 5 7 4 2 . . Peak Build Rating 143 | 7 9 10 18 18 24 77 76 92 116 109 122 95 100 100 102 112 108 110 112 112 114 121 143 143 120 138 Average Rating 67 | 5 7 9 13 17 22 70 75 85 103 109 102 93 99 99 100 101 99 108 107 112 112 118 129 121 86 77 On Entrance 75 | . 7 8 10 18 18 24 74 76 92 109 109 95 94 100 100 100 90 107 109 112 112 114 121 143 58 46 Avg Prop Armor Cover (%) 13 | . . . . . . 1 1 . . . . . . . . . . . . . . . . . 8 18 Naked Turns . | . . . . . . . . . . . . . . . . . . . . . . . . . . . Heaviest Build 45 | 13 30 28 32 34 36 24 27 30 30 28 37 39 38 38 38 38 37 37 40 40 40 40 45 42 24 40 Greatest Support 80 | 20 20 20 20 20 26 30 30 30 36 30 49 38 38 38 38 46 40 40 40 40 40 43 45 44 51 80 Greatest Overweight (x) 2 | . 1 2 1 1 1 . . . . . . 1 . . . . . . . . . . . . . 1 Average Overweight (x) . | . . 1 1 1 1 . . . . . . . . . . . . . . . . . . . . . Largest Inventory Capacity 15 | 8 15 15 15 15 15 15 5 5 5 5 10 10 10 10 10 10 10 10 10 10 10 10 10 10 10 5 Average Capacity 10 | 7 13 15 15 15 15 5 5 5 5 5 7 10 10 10 10 10 10 10 10 10 10 10 10 8 6 5 Most Carried 15 | 4 15 15 15 15 15 15 5 5 5 5 10 10 10 10 10 10 10 10 10 10 10 10 10 10 8 5 Average Carried 9 | 2 11 14 14 14 14 5 5 4 4 5 6 9 9 10 10 9 9 9 9 10 9 10 9 7 5 4 Final Capacity 15 | 8 15 15 15 15 15 5 5 5 5 5 10 10 10 10 10 10 10 10 10 10 10 10 10 5 5 5 Final Carried 15 | 4 15 15 15 15 15 5 5 5 5 5 10 10 10 10 10 10 9 10 10 10 10 10 10 5 5 1 Class Distribution -------------------- 49% | Mutant 10% | Commander-Sprinter 8% | Hacker-Sprinter 8% | Hacker-Scout 7% | Hacker-Ninja 6% | Scavenger-Mutant 4% | Scout Dominant Class ---------------- Mutant | -10/Materials Mutant | -10/Mines Mutant | -10/Subcaves Scavenger-Mutant | -8/Recycling Mutant | -8/Scraptown Mutant | -6/Factory Mutant | -6/Waste Mutant | -6/Factory Mutant | -5/Factory Hacker-Mutant | -5/Waste Hacker-Sprinter | -5/Factory Hacker-Sprinter | -5/Extension Commander-Sprinter | -5/Cetus Commander-Sprinter | -5/Archives Commander-Sprinter | -5/Hub_04(d) Hacker-Sprinter | -4/Factory Hacker-Scout | -4/Waste Hacker-Scout | -4/Factory Hacker-Scout | -4/Upper Caves Hacker-Scout | -4/Upper Caves Hacker-Scout | -4/Zhirov Hacker-Ninja | -3/Proximity Caves Hacker-Ninja | -3/Research Hacker-Ninja | -3/Quarantine Mutant | -2/Research Scout | -1/Access Resources | -11 -10 -10 -10 -8 -8 -6 -6 -6 -5 -5 -5 -5 -5 -5 -5 -4 -4 -4 -4 -4 -4 -3 -3 -3 -2 -1 ----------- Run | Yrd Mat Min Sub Rec Scr Fac Was Fac Fac Was Fac Ext Cet Arc Hub Fac Was Fac Upp Upp Zhi Pro Res Qua Res Acc Matter Collected 6419 | 330 266 137 539 93 173 100 50 972 242 . 438 715 270 100 92 174 413 52 65 91 . 156 130 50 218 553 Remotely . | . . . . . . . . . . . . . . . . . . . . . . . . . . . Salvage Created 8335 | 167 321 68 182 106 . 116 . 1610 687 . 899 579 359 342 76 287 221 137 . . . 63 909 117 154 935 Parts 435 | 11 23 6 12 5 . 3 . 75 34 . 35 30 21 26 5 14 3 7 . . . 4 31 7 6 77 Haulers Intercepted 19 | . 2 . . . . 1 . 3 3 . 3 . . . . 1 . 1 . . . . 5 . . . Recyclers Shooed 8 | . . . . . . . . 4 1 . . 2 . . . . . . . . . . 1 . . . Parts Field Recycled . | . . . . . . . . . . . . . . . . . . . . . . . . . . . Retrieved Matter . | . . . . . . . . . . . . . . . . . . . . . . . . . . . Parts Self-Destructed 25 | . . . 17 . . . . . . . . . . . . . . . . . . 8 . . . . Prevented . | . . . . . . . . . . . . . . . . . . . . . . . . . . . Parts Restored . | . . . . . . . . . . . . . . . . . . . . . . . . . . . Kills | -11 -10 -10 -10 -8 -8 -6 -6 -6 -5 -5 -5 -5 -5 -5 -5 -4 -4 -4 -4 -4 -4 -3 -3 -3 -2 -1 ------- Run | Yrd Mat Min Sub Rec Scr Fac Was Fac Fac Was Fac Ext Cet Arc Hub Fac Was Fac Upp Upp Zhi Pro Res Qua Res Acc Combat Hostiles Destroyed 109 | . 6 4 8 2 . . . 18 6 . 7 9 4 1 . 13 1 . . . . 5 . 2 5 18 Melee 12 | . . . . . . . . . . . 2 . . . . . . . . . . . . 2 . 8 Guns 9 | . 3 1 1 2 . . . . . . . . . . . 2 . . . . . . . . . . Cannons 28 | . . . . . . . . 11 . . 1 7 4 1 . 1 1 . . . . 1 . . 1 . AOE 59 | . 3 3 7 . . . . 7 6 . 4 2 . . . 10 . . . . . 4 . . 4 9 Classes Destroyed 19 | 2 6 . 2 1 . . . 4 . . . 1 . . . . 1 . . . . . 1 . . 1 Worker 20 | . 2 . . . . . . 4 3 . 2 . . . 1 2 . 1 . . . . 3 . . 2 Builder 13 | . . . . . . . . 2 2 . 1 1 . . 1 1 . 1 . . . . 1 . . 3 Tunneler 11 | 4 . . . . . . . 1 2 . . 1 . . . . . . . . . . . . . 3 Hauler 19 | . 2 . . . . 1 . 3 3 . 3 . . . . 1 . 1 . . . . 5 . . . Recycler 12 | 1 . . . . . . . 4 1 . 2 1 . . . . . . . . . . 2 . . 1 Mechanic 1 | . . . . . . . . 1 . . . . . . . . . . . . . . . . . . Operator 13 | . 1 . . . . . . . . . 1 . 1 8 1 1 . . . . . . . . . . Turret 2 | . . . 2 . . . . . . . . . . . . . . . . . . . . . . . Watcher 10 | . 1 . . . . . . 3 . . 1 1 . . 1 . . . . . . . . . 2 1 Swarmer 45 | . 3 3 3 . . . . 5 4 . 4 . . . . 8 . . . . . 5 . . 5 5 Saboteur 1 | . . . . . . . . . . . . . . . . . . . . . . . . . . 1 Grunt 19 | . 3 1 . . . . . 4 2 . . 5 . . . 4 . . . . . . . . . . Brawler 1 | . . . . . . . . . . . . 1 . . . . . . . . . . . . . . Sentry 9 | . . . . 2 . . . 3 . . 2 1 . 1 . . . . . . . . . . . . Hunter 4 | . . . . . . . . 1 . . . 1 . . . . . . . . . . . . . 2 Programmer 20 | . . . . . . . . 5 . . 1 1 . . . 1 . . . . . . . 2 . 10 Compactor 1 | . . . . . . . . . . . . . . . . . 1 . . . . . . . . . Cetus Guard 4 | . . . . . . . . . . . . . 4 . . . . . . . . . . . . . Subdweller 5 | . . . 5 . . . . . . . . . . . . . . . . . . . . . . . Thug 1 | . . . . . . . . 1 . . . . . . . . . . . . . . . . . . Guerrilla 1 | . . . . . . . . . . . . . 1 . . . . . . . . . . . . . Revision 1 | . . . . . . . . . . . . . . . . . . . . . . . 1 . . . Best Kill Streak 10 | 3 3 3 5 1 . 1 . 9 10 . 6 6 3 4 2 10 1 1 . . . 5 6 2 5 7 Combat Bots Only 9 | . 3 3 3 1 . . . 4 6 . 4 3 3 1 . 9 1 . . . . 5 . 2 5 6 Max Kills in Single Turn 4 | 1 2 3 3 1 . 1 . 2 3 . 4 2 1 1 1 4 1 1 . . . 3 1 1 3 3 Gunslinging . | . . . . . . . . . . . . . . . . . . . . . . . . . . . Exploded 4 | . 2 3 3 . . . . 1 3 . 3 1 . . . 4 . . . . . 3 . . 3 3 Melee 1 | . . . . . . . . . . . 1 . . . . . . . . . . . . 1 . 1 Uniques/NPCs Destroyed 1 | . . . . . . . . . . . . . 1 . . . . . . . . . . . . . A7 (-5/Cetus) Combat | -11 -10 -10 -10 -8 -8 -6 -6 -6 -5 -5 -5 -5 -5 -5 -5 -4 -4 -4 -4 -4 -4 -3 -3 -3 -2 -1 -------- Run | Yrd Mat Min Sub Rec Scr Fac Was Fac Fac Was Fac Ext Cet Arc Hub Fac Was Fac Upp Upp Zhi Pro Res Qua Res Acc Hostile Shots Fired 1231 | . 19 7 53 12 . . . 214 28 . 61 45 1 7 5 99 . 13 . . . 4 44 147 157 315 Missed 592 | . 6 2 26 4 . . . 121 10 . 24 22 . 5 2 51 . 10 . . . 2 28 69 82 128 Hits 639 | . 13 5 27 8 . . . 93 18 . 37 23 1 2 3 48 . 3 . . . 2 16 78 75 187 Melee 5 | . . . . . . . . . . . . . . . . . . . . . . . . . 4 1 Projectile 634 | . 13 5 27 8 . . . 93 18 . 37 23 1 2 3 48 . 3 . . . 2 16 78 71 186 AOE 1 | . . . . . . . . . . . . . . . . . . . . . . . . . 1 . Critical Strikes 36 | . . 1 . . . . . 1 3 . 2 2 2 . . 2 . . . . . . . 8 8 7 Actively Blocked 16 | . . . . . . . . . . . . . . . . . . . . . . . . 8 8 . Part Disruptions 3 | . . . . . . . . . . . . . . . . . . . . . . . . . 1 2 Damage Taken 13130 | . 135 58 277 122 . . . 1605 408 30 804 452 97 54 63 841 . 21 . . . 87 267 1463 2144 4202 Core 3953 | . 17 . 49 31 . . . 127 . . 149 77 . 28 . 103 . . . . . . 31 374 1359 1608 Absorbed by Shields 156 | . . . . . . . . . . . 18 78 36 . . . . . . . . . 24 . . . Redirected to Shielding 229 | . . . . . . . . 18 20 . 44 87 . . . . . . . . . 12 48 . . . Regen/Repaired (Parts) 519 | . 32 . . . . . 93 146 . . . . . . . . 153 . . . . . 95 . . . Core Remaining (%) 69 | 100 . . . . 61 . . 85 . . . . . . 74 . . . . . . 91 . 68 6 . Volleys Fired 606 | 10 30 5 40 13 . . . 107 13 1 22 77 23 9 13 28 12 19 19 25 . 62 25 17 24 12 Largest 2 | 2 2 2 2 2 . . . 1 1 1 1 1 1 1 1 2 1 1 1 1 . 1 1 1 1 1 Hottest 100 | 40 100 40 53 48 . . . 55 55 55 55 51 51 51 51 70 33 54 90 90 . 90 90 54 94 58 Shots Fired 670 | 20 56 9 44 26 . . . 108 13 1 23 75 24 8 13 34 13 19 19 25 . 62 25 17 24 12 Gun 152 | 20 52 8 29 26 . . . 2 . . . . . . 3 12 . . . . . . . . . . Cannon 453 | . . . . . . . . 96 7 1 20 71 24 8 10 13 13 19 19 25 . 60 25 17 21 4 Launcher 62 | . 2 1 15 . . . . 10 5 . 3 4 . . . 9 . . . . . 2 . . 3 8 Special 3 | . 2 . . . . . . . 1 . . . . . . . . . . . . . . . . . Kinetic 473 | 20 52 8 29 26 . . . 98 7 1 20 71 24 8 13 25 13 19 2 . . . . 17 16 4 Thermal 129 | . 2 . . . . . . . . . . . . . . . . . 17 25 . 60 25 . . . Explosive 62 | . 2 1 15 . . . . 10 5 . 3 4 . . . 9 . . . . . 2 . . 3 8 Electromagnetic 5 | . . . . . . . . . . . . . . . . . . . . . . . . . 5 . Robot Hit Streak 14 | 4 11 2 14 7 . . . 7 7 . 2 9 9 11 . 5 10 2 . . . 2 2 2 3 3 Robot Miss Streak 5 | 2 3 1 1 3 . . . 4 2 . 2 2 3 1 . 4 1 3 . . . 1 3 5 1 1 Penetration Max 1 | . . . . . . . . . . . . 1 1 1 . . . . . . . . . . . . Secondary Targets . | . . . . . . . . . . . . . . . . . . . . . . . . . . . Shots Hit Robots 381 | 13 31 5 15 16 . 1 . 54 26 . 32 40 17 17 5 19 10 8 . . . 2 23 8 7 32 Core Hits 294 | 6 16 4 17 4 . 1 . 61 25 . 17 22 12 9 2 30 2 1 . . . 7 9 2 6 41 Critical Kills 10 | . . . . . . . . . . . . 5 4 1 . . . . . . . . . . . . Critical Parts Destroyed 22 | . . 1 1 . . . . . . . . 10 6 2 . . . . . . . . . . . 2 Critical Strikes 56 | . . 1 1 . . . . 2 3 . 2 17 14 4 . . . 2 . . . . 2 1 1 6 Destroy 36 | . . 1 1 . . . . . . . . 17 13 4 . . . . . . . . . . . . Blast 3 | . . . . . . . . 1 1 . 1 . . . . . . . . . . . . . . . Corrupt 1 | . . . . . . . . . . . . . . . . . . . . . . . . . 1 . Smash 3 | . . . . . . . . . . . . . . . . . . . . . . . . . . 3 Sever 10 | . . . . . . . . 1 2 . 1 . 1 . . . . 2 . . . . 2 1 . . Impale 3 | . . . . . . . . . . . . . . . . . . . . . . . . . . 3 Melee Attacks 375 | . . . 23 . . 2 . 76 32 . 51 3 4 17 16 22 . 26 3 . . . 35 20 . 45 Impact 11 | . . . . . . . . . . . . . . . . . . . . . . . . . . 11 Slashing 330 | . . . 23 . . 2 . 76 32 . 51 3 4 17 16 22 . 26 3 . . . 35 20 . . Piercing 34 | . . . . . . . . . . . . . . . . . . . . . . . . . . 34 Sneak Attacks 64 | . . . . . . 1 . 10 8 . 7 1 4 7 2 3 . 3 . . . . 11 . . 7 Combat Hostiles 1 | . . . . . . . . . 1 . . . . . . . . . . . . . . . . . Follow-up Attacks . | . . . . . . . . . . . . . . . . . . . . . . . . . . . Damage Inflicted 25308 | 153 676 146 908 262 . 69 . 3970 2093 . 2556 1246 636 1326 450 2830 399 555 . . . 480 1878 386 880 3409 Guns 1258 | 153 394 66 85 262 . . . 41 . . . . . . 29 228 . . . . . . . . . . Cannons 4259 | . . . . . . . . 1474 67 . 266 764 343 131 11 143 399 80 . . . 64 122 89 306 . Explosions 8451 | . 282 80 823 . . . . 1274 765 . 342 303 . . . 1981 . . . . . 416 . . 574 1611 Melee 11291 | . . . . . . 69 . 1181 1261 . 1948 175 293 1195 410 478 . 475 . . . . 1756 297 . 1753 Ramming 49 | . . . . . . . . . . . . 4 . . . . . . . . . . . . . 45 Kinetic 5117 | 153 394 66 85 262 . . . 1515 67 . 266 764 343 131 40 371 399 80 . . . . . 89 92 . Thermal 370 | . . . . . . . . 184 . . . . . . . . . . . . . 64 122 . . . Explosive 8267 | . 282 80 823 . . . . 1090 765 . 342 303 . . . 1981 . . . . . 416 . . 574 1611 Electromagnetic 214 | . . . . . . . . . . . . . . . . . . . . . . . . . 214 . Impact 167 | . . . . . . . . . . . . . . . . . . . . . . . . . . 167 Slashing 9538 | . . . . . . 69 . 1181 1261 . 1948 175 293 1195 410 478 . 475 . . . . 1756 297 . . Piercing 1586 | . . . . . . . . . . . . . . . . . . . . . . . . . . 1586 Highest Corruption 10 | . . . . . . . . 5 . 9 10 10 10 10 . 2 2 2 . . . . . 3 7 6 Average Corruption 5 | . . . . . . . . 2 . 9 9 10 10 7 . 1 2 1 . . . . . 2 3 5 Corruption Purged 14 | . . . . . . . . 2 . . . . . 10 . . . 2 . . . . . . . . Corruption Blocked . | . . . . . . . . . . . . . . . . . . . . . . . . . . . Effects 146 | . . . . . . . . 23 . . 35 38 14 8 . 1 3 . . . . . . 8 8 8 Message Errors 40 | . . . . . . . . 3 . . 11 10 4 4 . . 1 . . . . . . 3 2 2 Matter Fused 32 | . . . . . . . . 7 . . 9 7 5 1 . . 1 . . . . . . 2 . . Heat Flow Errors 23 | . . . . . . . . 4 . . 5 7 . 1 . . . . . . . . . . 3 3 Energy Discharges 13 | . . . . . . . . 2 . . 2 5 1 . . . . . . . . . . 1 1 1 Data Loss (minor) 18 | . . . . . . . . 3 . . 5 5 2 1 . . . . . . . . . . 1 1 Data Loss (major) 6 | . . . . . . . . 1 . . 1 1 . . . 1 . . . . . . . 1 . 1 Misfires 4 | . . . . . . . . 1 . . 1 . 1 . . . 1 . . . . . . . . . Alerts 6 | . . . . . . . . 2 . . 1 . 1 . . . . . . . . . . 1 1 . Misdirections 1 | . . . . . . . . . . . . 1 . . . . . . . . . . . . . . Weapon Failures 3 | . . . . . . . . . . . . 2 . 1 . . . . . . . . . . . . Overload Shots . | . . . . . . . . . . . . . . . . . . . . . . . . . . . Overflow Damage 2681 | . 16 . . . . . . 388 203 . 422 81 . 297 207 228 . 123 . . . . 315 20 34 347 Projectiles 104 | . . . . . . . . 68 . . . 2 . . . . . . . . . . . . 34 . Explosions 203 | . 16 . . . . . . 7 17 . . . . . . 75 . . . . . . . . . 88 Melee 2374 | . . . . . . . . 313 186 . 422 79 . 297 207 153 . 123 . . . . 315 20 . 259 Knockbacks 20 | . . . . . . . . 9 . . . 4 1 1 1 1 . . . . . . . . 1 2 Impact 2 | . . . . . . . . . . . . . . . . . . . . . . . . . . 2 Kinetic 17 | . . . . . . . . 8 . . . 4 1 1 1 1 . . . . . . . . 1 . Secondary 1 | . . . . . . . . 1 . . . . . . . . . . . . . . . . . . Self-Inflicted Damage 148 | . . . 17 . . . . . 32 . 23 30 . . . . . . . . . 38 . . . 8 Shots 6 | . . . 1 . . . . . 1 . 1 2 . . . . . . . . . 1 . . . . Rammed 6 | . . . . . . . . . . . . 2 . . . . . . . . . . . . . 4 Targets Rammed 28 | . . . . . . . . . . . . 2 . . . . . . . . . . . . . 26 Kicked 22 | . . . . . . . . . . . . . . . . . . . . . . . . . . 22 Crushed . | . . . . . . . . . . . . . . . . . . . . . . . . . . . Highest Temperature 494 | . 40 20 . 48 . . . 494 20 8 307 279 33 82 14 28 . 17 135 170 . 223 167 . 258 265 Average Temperature 59 | . 17 10 . 14 . . . 70 8 7 78 76 11 13 6 11 . 7 53 59 . 54 77 . 83 90 Received Heat Transfer 1235 | . 60 36 84 27 . . . 174 99 . 180 92 . 9 27 60 . 12 . . . . . 60 198 117 Effects 6 | . . . . . . . . 3 . . 1 . . . . . . . . . . . . . 2 . Shutdowns 1 | . . . . . . . . 1 . . . . . . . . . . . . . . . . . . Energy Bleed 2 | . . . . . . . . 1 . . 1 . . . . . . . . . . . . . . . Interference 2 | . . . . . . . . . . . . . . . . . . . . . . . . . 2 . Short Circuit 1 | . . . . . . . . 1 . . . . . . . . . . . . . . . . . . Siege Activations . | . . . . . . . . . . . . . . . . . . . . . . . . . . . Martial Activations . | . . . . . . . . . . . . . . . . . . . . . . . . . . . Shielding Activations . | . . . . . . . . . . . . . . . . . . . . . . . . . . . Robots Disrupted . | . . . . . . . . . . . . . . . . . . . . . . . . . . . Combat Hostiles . | . . . . . . . . . . . . . . . . . . . . . . . . . . . Robots Corrupted 4 | . . . . . . . . . . . . . . . . . . . . . . . . . 2 2 Combat Hostiles 1 | . . . . . . . . . . . . . . . . . . . . . . . . . . 1 Parts Fried 3 | . . . . . . . . . . . . . . . . . . . . . . . . . 1 2 Impact Corruptions 5 | . . . . . . . . . . . . . . . . . . . . . . . . . . 5 Robots Melted . | . . . . . . . . . . . . . . . . . . . . . . . . . . . Combat Hostiles . | . . . . . . . . . . . . . . . . . . . . . . . . . . . Parts Melted 4 | . . . 1 . . . . 1 . . 1 . . . . . . . . . . . 1 . . . Heat Transferred 412 | . . . . . . . . 150 . . . . . . . . . . . . . 100 162 . . . Parts Sabotaged 1 | . . . . . . . . . . . . . . . . . . . . . . . . . . 1 Parts Stolen . | . . . . . . . . . . . . . . . . . . . . . . . . . . . Parts Stripped . | . . . . . . . . . . . . . . . . . . . . . . . . . . . Power Chain Reactions . | . . . . . . . . . . . . . . . . . . . . . . . . . . . Alert | -11 -10 -10 -10 -8 -8 -6 -6 -6 -5 -5 -5 -5 -5 -5 -5 -4 -4 -4 -4 -4 -4 -3 -3 -3 -2 -1 ------- Run | Yrd Mat Min Sub Rec Scr Fac Was Fac Fac Was Fac Ext Cet Arc Hub Fac Was Fac Upp Upp Zhi Pro Res Qua Res Acc Maximum Alert Level 4 | . . . . . . . . 4 3 1 1 1 1 1 . 2 1 1 . . . . . . 1 2 Low Security (%) 62 | 100 100 100 . 100 . 100 100 20 . . 39 73 10 76 100 66 86 77 . . . . 100 100 47 24 Level 1 23 | . . . . . . . . 33 . 100 60 26 89 23 . 20 13 22 . . . . . . 52 51 Level 2 6 | . . . . . . . . 6 80 . . . . . . 12 . . . . . . . . . 24 Level 3 3 | . . . . . . . . 17 19 . . . . . . . . . . . . . . . . . Level 4 3 | . . . . . . . . 21 . . . . . . . . . . . . . . . . . . Level 5 . | . . . . . . . . . . . . . . . . . . . . . . . . . . . High Security . | . . . . . . . . . . . . . . . . . . . . . . . . . . . Max Security . | . . . . . . . . . . . . . . . . . . . . . . . . . . . Peak Influence 1250 | 10 87 78 . 97 . 15 19 1250 930 344 337 352 291 298 174 628 219 257 . . . . 72 111 373 498 Initial 608 | . . 3 . 87 . . . . 608 322 222 . 159 91 . 25 217 41 . . . . . . 38 213 Average 205 | 1 17 12 . 15 . 1 . 572 640 327 200 130 243 103 46 213 137 121 . . . . 13 26 185 275 Influence Increases 10049 | 25 227 134 242 195 . 22 33 2014 618 36 711 787 389 287 390 859 42 619 . . . 125 303 340 581 1070 Destroy 0b10 Robot/C 2980 | . 120 100 100 40 . . . 540 120 . 140 400 160 80 120 260 . 200 . . . 100 . 40 100 360 Destroy 0b10 Robot/NC 510 | 25 30 . . . . 5 . 90 55 . 50 25 10 40 25 25 . 15 . . . . 55 . 10 50 Destroy Leader 556 | . 36 20 . . . 2 . 152 16 . 48 52 . . 32 32 . 52 . . . 10 8 10 14 72 Allied During Kill 900 | . . 6 7 . . . . 196 . . . 176 170 120 127 . . 98 . . . . . . . . Successful Hack 641 | . 21 . . 35 . . . 84 65 . 48 15 4 . 9 52 . 25 . . . . 76 71 88 48 Select Force Hacks 120 | . . . . 120 . . . . . . . . . . . . . . . . . . . . . . Disable Machine 540 | . . . . . . 15 . 120 60 . 30 15 15 45 45 30 . 45 . . . . 30 30 30 30 Destroy Structure 1162 | . 20 8 . . . . 33 172 92 36 80 74 30 2 32 100 42 64 . . . . 44 54 114 165 Partial Spotted 375 | . . . . . . . . 60 30 . 90 30 . . . 30 . 15 . . . . 45 . 15 60 Lose Combat Pursuer 2265 | . . . 135 . . . . 600 180 . 225 . . . . 330 . 105 . . . 15 45 135 210 285 Influence Decreases 9558 | 25 217 144 60 377 . 22 33 772 938 640 1029 502 446 515 336 293 603 654 24 . . 125 301 273 293 936 Entered New Map 2332 | . . 7 . 95 . . . . 634 600 96 . 126 137 . 29 403 18 10 . . . . 2 31 144 Time Decay 4944 | 25 217 137 20 272 . 22 10 632 294 20 392 418 190 358 116 214 140 286 14 . . 125 198 190 202 452 Search Patrol Dispatched 100 | . . . . . . . . . . . . . . . . . . . . . . . . . . 100 Lost Part 491 | . . . . 10 . . . 20 10 . 10 30 . . . 40 . . . . . . 10 71 60 230 Lost Ally 891 | . . . 40 . . . 23 120 . 20 . 28 130 20 220 10 60 200 . . . . . 10 . 10 Purge Threat 800 | . . . . . . . . . . . 531 26 . . . . . 150 . . . . 93 . . . Squads Dispatched 98 | . 2 . . . . 2 . 25 13 . 11 2 . . 5 7 . 7 . . . . 6 3 4 11 Investigation 44 | . . . . . . 1 . 10 7 . 8 . . . 2 6 . 6 . . . . 1 . 1 2 Extermination 22 | . . . . . . . . 8 1 . 2 . . . 1 1 . 1 . . . . 1 1 2 4 Reinforcement 24 | . 2 . . . . 1 . 3 4 . . 2 . . 2 . . . . . . . 4 2 1 3 Assault 7 | . . . . . . . . 4 1 . . . . . . . . . . . . . . . . 2 Garrison 1 | . . . . . . . . . . . 1 . . . . . . . . . . . . . . . Intercept . | . . . . . . . . . . . . . . . . . . . . . . . . . . . Searches Triggered 1 | . . . . . . . . . . . . . . . . . . . . . . . . . . 1 Unchained Authorized 1 | . . . . . . . . . . . . . . . . . . . . . . . . 1 . . Construction Impeded 6 | . . . . . . . . 1 1 . . 2 . . . . . . . . . . . . . 2 Haulers Reinforced 6 | . . . . . . . . 1 3 . . . . . . . . . . . . . 2 . . . Active Scanning Responses . | . . . . . . . . . . . . . . . . . . . . . . . . . . . Cargo Convoy Interrupts 1 | . . . . . . . . . . . 1 . . . . . . . . . . . . . . . Stealth | -11 -10 -10 -10 -8 -8 -6 -6 -6 -5 -5 -5 -5 -5 -5 -5 -4 -4 -4 -4 -4 -4 -3 -3 -3 -2 -1 --------- Run | Yrd Mat Min Sub Rec Scr Fac Was Fac Fac Was Fac Ext Cet Arc Hub Fac Was Fac Upp Upp Zhi Pro Res Qua Res Acc Distress Signals 27 | . . . . . . . . 2 . . . 3 2 1 1 5 . 4 . . . . 7 . . 2 Communications Jammed 32 | . . . . . . . . . . . . . . . . . . . . . . . 2 21 9 . Distress Signals 19 | . . . . . . . . . . . . . . . . . . . . . . . 1 9 9 . Times Spotted 440 | . 12 4 13 2 . 2 5 88 19 6 24 20 10 10 12 41 10 14 . . . 6 17 29 38 58 Peak Tracking Total 17 | . 3 2 5 1 . 1 4 13 6 5 12 5 5 1 5 11 6 5 . . . 5 3 9 17 15 Tactical Retreats 61 | . . . 2 . . . 1 16 6 . 5 . . . . 8 1 4 . . . 1 3 2 5 7 Traps | -11 -10 -10 -10 -8 -8 -6 -6 -6 -5 -5 -5 -5 -5 -5 -5 -4 -4 -4 -4 -4 -4 -3 -3 -3 -2 -1 ------- Run | Yrd Mat Min Sub Rec Scr Fac Was Fac Fac Was Fac Ext Cet Arc Hub Fac Was Fac Upp Upp Zhi Pro Res Qua Res Acc Traps Triggered 21 | . . 1 . . . 1 . 7 1 . 2 3 . . . 1 . 1 . . . . 1 . 2 1 Indirectly . | . . . . . . . . . . . . . . . . . . . . . . . . . . . Trap Hack Attempts . | . . . . . . . . . . . . . . . . . . . . . . . . . . . Triggered . | . . . . . . . . . . . . . . . . . . . . . . . . . . . Disarmed . | . . . . . . . . . . . . . . . . . . . . . . . . . . . Reprogrammed . | . . . . . . . . . . . . . . . . . . . . . . . . . . . Reused . | . . . . . . . . . . . . . . . . . . . . . . . . . . . Traps Extracted . | . . . . . . . . . . . . . . . . . . . . . . . . . . . Installed . | . . . . . . . . . . . . . . . . . . . . . . . . . . . Triggered . | . . . . . . . . . . . . . . . . . . . . . . . . . . . Machines | -11 -10 -10 -10 -8 -8 -6 -6 -6 -5 -5 -5 -5 -5 -5 -5 -4 -4 -4 -4 -4 -4 -3 -3 -3 -2 -1 ---------- Run | Yrd Mat Min Sub Rec Scr Fac Was Fac Fac Was Fac Ext Cet Arc Hub Fac Was Fac Upp Upp Zhi Pro Res Qua Res Acc Machines Disabled 41 | . . . 5 . . 1 . 8 4 . 2 1 1 3 3 2 . 3 . . . . 2 2 2 2 Max in Single Turn 4 | . . . 3 . . 1 . 4 1 . 1 . 1 1 1 1 . 1 . . . . 1 1 1 1 Garrison Access 11 | . . . . . . . . 2 1 . 2 . . . . 2 . 2 . . . . . 1 . 1 Network Hub 1 | . . . . . . . . . . . . . . . 1 . . . . . . . . . . . Machines Repaired . | . . . . . . . . . . . . . . . . . . . . . . . . . . . Machines Dismantled 2 | . . . . . . . . . . . . . 1 . 1 . . . . . . . . . . . Machines Sabotaged . | . . . . . . . . . . . . . . . . . . . . . . . . . . . Overloaded Fab Kills . | . . . . . . . . . . . . . . . . . . . . . . . . . . . Hacking | -11 -10 -10 -10 -8 -8 -6 -6 -6 -5 -5 -5 -5 -5 -5 -5 -4 -4 -4 -4 -4 -4 -3 -3 -3 -2 -1 --------- Run | Yrd Mat Min Sub Rec Scr Fac Was Fac Fac Was Fac Ext Cet Arc Hub Fac Was Fac Upp Upp Zhi Pro Res Qua Res Acc Machines Accessed 192 | . 6 1 2 12 9 5 . 29 17 . 26 13 2 . 3 15 . 12 . . 7 1 9 9 6 8 Terminals 102 | . 4 . . 6 . 4 . 13 7 . 14 12 2 . 3 7 . 4 . . . 1 7 8 4 6 Fabricators 5 | . . . . . . . . 3 . . . . . . . . . . . . . . . . 2 . Repair Stations 4 | . 1 . . . . . . 2 . . . . . . . . . . . . . . 1 . . . Recycling Units 43 | . 1 . . 6 . 1 . 7 7 . 8 1 . . . 6 . 6 . . . . . . . . Scanalyzers 7 | . . . . . . . . 2 2 . 2 . . . . . . . . . . . 1 . . . Garrison Access 12 | . . . . . . . . 2 1 . 2 . . . . 2 . 2 . . . . . 1 . 2 Total Hacks 663 | . 17 1 13 32 73 11 . 65 43 . 72 30 9 . 10 62 . 40 . . 46 1 64 36 20 18 Successful 393 | . 11 1 13 18 73 2 . 27 19 . 34 20 4 . 7 35 . 25 . . 46 1 29 14 11 3 Failed 267 | . 6 . . 14 . 9 . 37 24 . 37 10 5 . 3 27 . 15 . . . . 34 22 9 15 Catastrophic 53 | . 1 . . 3 . 3 . 9 2 . 9 . 1 . 1 8 . 1 . . . . 4 4 2 5 Database Lockouts 3 | . . . . . . . . 1 . . 1 . . . . . . . . . . . 1 . . . Manual 192 | . 6 . . 12 . 2 . 20 28 . 22 6 1 . 6 29 . 21 . . . . 13 14 7 5 Terminals 374 | . 12 . . 18 . 10 . 31 21 . 52 28 9 . 10 42 . 26 . . . 1 52 32 16 14 Fabricators 14 | . . . . . . . . 10 . . . . . . . . . . . . . . . . 4 . Repair Stations 18 | . 2 . . . . . . 7 . . . . . . . . . . . . . . 9 . . . Recycling Units 81 | . 3 . . 14 . 1 . 9 15 . 14 2 . . . 13 . 10 . . . . . . . . Scanalyzers 15 | . . . . . . . . 4 4 . 4 . . . . . . . . . . . 3 . . . Garrison Access 28 | . . . . . . . . 4 3 . 2 . . . . 7 . 4 . . . . . 4 . 4 Terminal Hacks 269 | . 6 1 13 8 73 1 . 5 5 . 19 15 4 . 4 17 . 13 . . 46 1 20 9 7 2 Record 126 | . . . 12 . 65 . . . 1 . 3 . 4 . . 1 . 1 . . 34 1 2 . 2 . Part Schematic 10 | . . . . 2 . . . . 1 . . . . . 1 1 . . . . 4 . 1 . . . Robot Schematic 1 | . . . . 1 . . . . . . . . . . . . . . . . . . . . . . Robot Analysis 18 | . 2 . . 1 8 . . . . . . . . . . . . . . . 4 . 2 . . 1 Prototype ID Bank 15 | . 1 . . . . . . . . . 2 1 . . . 2 . 1 . . 4 . 3 1 . . Open Door 9 | . . 1 . . . . . . . . 1 6 . . . . . . . . . . 1 . . . Level Access Points 3 | . . . . . . . . . . . . . . . 1 . . . . . . . . 1 . 1 Branch Access Points 6 | . . . . 1 . . . . 1 . 1 . . . . . . 1 . . . . 1 . 1 . Terminal Index 4 | . . . . . . 1 . . . . 1 1 . . . 1 . . . . . . . . . . Recycling Unit Index 2 | . . . . . . . . . . . . . . . . 1 . 1 . . . . . . . . Alert Level 7 | . . . . 1 . . . . . . 1 1 . . . 1 . 1 . . . . . 1 1 . Unreport Threat 8 | . . . . . . . . . . . 4 1 . . . . . 1 . . . . 2 . . . Locate Traps 19 | . . . . . . . . 1 . . 2 1 . . . 6 . 4 . . . . 3 1 1 . Recall Extermination 1 | . . . . . . . . . . . . 1 . . . . . . . . . . . . . . Hauler Manifests 5 | . 1 . . . . . . 2 . . . . . . . 1 . . . . . . 1 . . . Registered Components 8 | . 1 . . 1 . . . 1 . . 1 1 . . . . . 1 . . . . 1 . 1 . Registered Prototypes 5 | . . . . . . . . 1 . . 1 . . . . 1 . 1 . . . . 1 . . . Zone Layout 21 | . 1 . . 1 . . . . 2 . 2 2 . . 2 2 . 1 . . . . 2 5 1 . Proto ID Catalog 1 | . . . 1 . . . . . . . . . . . . . . . . . . . . . . . Fabricator Hacks 3 | . . . . . . . . 2 . . . . . . . . . . . . . . . . 1 . Network Status 2 | . . . . . . . . 1 . . . . . . . . . . . . . . . . 1 . Load Schematic 1 | . . . . . . . . 1 . . . . . . . . . . . . . . . . . . Repair Station Hacks 12 | . 2 . . . . . . 5 . . . . . . . . . . . . . . 5 . . . Scan Component 7 | . 1 . . . . . . 3 . . . . . . . . . . . . . . 3 . . . Repair 5 | . 1 . . . . . . 2 . . . . . . . . . . . . . . 2 . . . Recycling Unit Hacks 11 | . 1 . . 2 . 1 . 1 . . 1 1 . . . 3 . 1 . . . . . . . . Report Inventory 2 | . . . . . . 1 . 1 . . . . . . . . . . . . . . . . . . Retrieve Components 9 | . 1 . . 2 . . . . . . 1 1 . . . 3 . 1 . . . . . . . . Scanalyzer 8 | . . . . . . . . 1 2 . 3 . . . . . . . . . . . 2 . . . Insert Component 1 | . . . . . . . . . . . 1 . . . . . . . . . . . . . . . Analyze 1 | . . . . . . . . . . . 1 . . . . . . . . . . . . . . . Retrieve Study 6 | . . . . . . . . 1 2 . 1 . . . . . . . . . . . 2 . . . Garrison Access Hacks 11 | . . . . . . . . 2 1 . 2 . . . . 2 . 2 . . . . . 1 . 1 Seal Access 11 | . . . . . . . . 2 1 . 2 . . . . 2 . 2 . . . . . 1 . 1 Unauthorized Hacks 78 | . 2 . . 7 . . . 11 11 . 9 4 . . 3 13 . 9 . . . . 2 4 3 . Terminals 42 | . 2 . . 3 . . . 4 5 . 3 4 . . 3 7 . 3 . . . . 2 4 2 . Track 1 | . . . . . . . . . . . . . . . . . . . . . . . . . 1 . Assimilate 6 | . . . . . . . . . . . . 2 . . . 2 . 1 . . . . . 1 . . Botnet 29 | . 2 . . 3 . . . 4 4 . 3 2 . . 1 3 . 2 . . . . 2 2 1 . Disrupt 1 | . . . . . . . . . . . . . . . . . . . . . . . . 1 . . Skim 3 | . . . . . . . . . 1 . . . . . . 2 . . . . . . . . . . Sabotage 2 | . . . . . . . . . . . . . . . 2 . . . . . . . . . . . Fabricators 2 | . . . . . . . . 1 . . . . . . . . . . . . . . . . 1 . Prioritize 1 | . . . . . . . . 1 . . . . . . . . . . . . . . . . . . Liberate 1 | . . . . . . . . . . . . . . . . . . . . . . . . . 1 . Repair Stations . | . . . . . . . . . . . . . . . . . . . . . . . . . . . Recycling Units 34 | . . . . 4 . . . 6 6 . 6 . . . . 6 . 6 . . . . . . . . Tunnel 4 | . . . . 4 . . . . . . . . . . . . . . . . . . . . . . Fedlink 30 | . . . . . . . . 6 6 . 6 . . . . 6 . 6 . . . . . . . . Scanalyzers . | . . . . . . . . . . . . . . . . . . . . . . . . . . . Garrison Access . | . . . . . . . . . . . . . . . . . . . . . . . . . . . Data Cores Recovered 3 | . . . . . . . . . . . 1 . . . 1 . . . . . . . 1 . . . Used 1 | . . . . . . . . . . . . . . . . . . . . . . . 1 . . . Hacking Detections 110 | . 4 . . 9 . 4 . 21 10 . 19 3 1 . 1 6 . 4 . . . . 8 8 5 7 Full Trace Events 10 | . . . . 1 . 1 . 2 1 . 2 . . . . . . . . . . . . . 1 2 Feedback Events . | . . . . . . . . . . . . . . . . . . . . . . . . . . . Feedback Blocked . | . . . . . . . . . . . . . . . . . . . . . . . . . . . Robot Schematics Acquired 1 | . . . . 1 . . . . . . . . . . . . . . . . . . . . . . Robots Built . | . . . . . . . . . . . . . . . . . . . . . . . . . . . Authchips . | . . . . . . . . . . . . . . . . . . . . . . . . . . . Time . | . . . . . . . . . . . . . . . . . . . . . . . . . . . Total Robot Build Rating . | . . . . . . . . . . . . . . . . . . . . . . . . . . . Part Schematics Acquired 11 | . . . . 2 . . . . 1 . 1 . . . 1 1 . . . . 4 . 1 . . . Parts Built . | . . . . . . . . . . . . . . . . . . . . . . . . . . . Authchips . | . . . . . . . . . . . . . . . . . . . . . . . . . . . Time . | . . . . . . . . . . . . . . . . . . . . . . . . . . . Total Part Build Rating . | . . . . . . . . . . . . . . . . . . . . . . . . . . . Part Studies Acquired 6 | . . . . . . . . 1 2 . 1 . . . . . . . . . . . 2 . . . Parts Repaired 4 | . 1 . . . . . . 1 . . . . . . . . . . . . . . 2 . . . Time 249 | . 26 . . . . . . 136 . . . . . . . . . . . . . . 87 . . . Parts Recycled . | . . . . . . . . . . . . . . . . . . . . . . . . . . . Recycled Matter . | . . . . . . . . . . . . . . . . . . . . . . . . . . . Retrieved Matter . | . . . . . . . . . . . . . . . . . . . . . . . . . . . Retrieved Components 19 | . 7 . . 3 . . . . . . 3 2 . . . 3 . 1 . . . . . . . . Parts Scanalyzed 1 | . . . . . . . . . . . 1 . . . . . . . . . . . . . . . Part Schematics Acquired 1 | . . . . . . . . . . . 1 . . . . . . . . . . . . . . . Parts Damaged . | . . . . . . . . . . . . . . . . . . . . . . . . . . . Bothacking | -11 -10 -10 -10 -8 -8 -6 -6 -6 -5 -5 -5 -5 -5 -5 -5 -4 -4 -4 -4 -4 -4 -3 -3 -3 -2 -1 ------------ Run | Yrd Mat Min Sub Rec Scr Fac Was Fac Fac Was Fac Ext Cet Arc Hub Fac Was Fac Upp Upp Zhi Pro Res Qua Res Acc Used RIF Installer . | . . . . . . . . . . . . . . . . . . . . . . . . . . . Robots Hacked 1 | . . . . . . . . . 1 . . . . . . . . . . . . . . . . . Non-combat 1 | . . . . . . . . . 1 . . . . . . . . . . . . . . . . . Combat . | . . . . . . . . . . . . . . . . . . . . . . . . . . . Robot Hacks Applied 1 | . . . . . . . . . 1 . . . . . . . . . . . . . . . . . find_chute 1 | . . . . . . . . . 1 . . . . . . . . . . . . . . . . . Relay Couplers Released 4 | . . . . . . . . . . . 4 . . . . . . . . . . . . . . . Programmers 4 | . . . . . . . . . . . 4 . . . . . . . . . . . . . . . Fabnet Peak Effective % . | . . . . . . . . . . . . . . . . . . . . . . . . . . . Robots Rewired 11 | . . . . . . . . . . . . 11 . . . . . . . . . . . . . . Allies Hacked 1 | . . . . . . . . . . . . . . . . . . 1 . . . . . . . . Hacks Repelled . | . . . . . . . . . . . . . . . . . . . . . . . . . . . Allies | -11 -10 -10 -10 -8 -8 -6 -6 -6 -5 -5 -5 -5 -5 -5 -5 -4 -4 -4 -4 -4 -4 -3 -3 -3 -2 -1 -------- Run | Yrd Mat Min Sub Rec Scr Fac Was Fac Fac Was Fac Ext Cet Arc Hub Fac Was Fac Upp Upp Zhi Pro Res Qua Res Acc Total Allies 88 | . . 2 . . . . 18 . . 18 . 21 5 . . 2 20 1 . . . . . 1 . . Largest Group 20 | . . 2 2 . . . 18 9 . 18 . 18 19 11 11 1 20 12 . . . . . 1 . . Highest-Rated Group 968 | . . 46 46 . . . 638 364 . 656 . 631 968 577 577 10 730 455 . . . . . 26 . . Highest-Rated Ally 159 | . . 31 31 . . . 50 46 . 50 . 159 159 96 96 10 50 46 . . . . . 26 . . Total Orders 3 | . . . . . . . . . . . . . 1 1 . . . . . . . . . . . 1 AID 2 | . . . . . . . . . . . . . 1 1 . . . . . . . . . . . . EXPLORE 1 | . . . . . . . . . . . . . . . . . . . . . . . . . . 1 Ally Attacks 745 | . . 6 15 . . . 168 57 . 51 . 92 77 31 27 . 144 77 . . . . . . . . Total Damage 21864 | . . 106 233 . . . 5796 1103 . 2297 . 2033 1879 875 948 . 4454 2140 . . . . . . . . Kills 77 | . . 1 2 . . . 9 10 . 6 . 12 6 3 7 . 10 11 . . . . . . . . Allies Corrupted 4 | . . . . . . . . . . . . . . . 3 . . 1 . . . . . . . . Allies Melted 1 | . . . . . . . . 1 . . . . . . . . . . . . . . . . . . Intel | -11 -10 -10 -10 -8 -8 -6 -6 -6 -5 -5 -5 -5 -5 -5 -5 -4 -4 -4 -4 -4 -4 -3 -3 -3 -2 -1 ------- Run | Yrd Mat Min Sub Rec Scr Fac Was Fac Fac Was Fac Ext Cet Arc Hub Fac Was Fac Upp Upp Zhi Pro Res Qua Res Acc Active Infowar (turns) 14703 | 15 910 721 857 . . 162 351 2064 641 43 840 1054 389 1202 242 450 288 630 213 266 47 466 748 488 478 1138 Optics 4854 | . . . . . . . . . . . 212 . . . . . 168 630 213 266 47 466 748 488 478 1138 Sensors 10650 | . . . . . . 82 . 1567 641 43 840 1054 389 1202 242 450 288 630 213 266 45 453 748 457 167 873 Seismic 3513 | 15 910 721 857 . . 162 351 497 . . . . . . . . . . . . . . . . . . Jamming 2151 | . . . . . . . . . . . . . . . . . . . . . 2 450 748 488 463 . Robot Analysis Total 18 | . 2 . . 1 8 . . . . . . . . . . . . . . . 4 . 2 . . 1 Derelict Logs Recovered 6 | . . 1 3 . . . . . . . . . . . . . . . . 2 . . . . . . Drone Launches 1 | . . . . . . . . . . . . . . . . . . . . . . . . . . 1 Drone Recoveries . | . . . . . . . . . . . . . . . . . . . . . . . . . . . Exploration | -11 -10 -10 -10 -8 -8 -6 -6 -6 -5 -5 -5 -5 -5 -5 -5 -4 -4 -4 -4 -4 -4 -3 -3 -3 -2 -1 ------------- Run | Yrd Mat Min Sub Rec Scr Fac Was Fac Fac Was Fac Ext Cet Arc Hub Fac Was Fac Upp Upp Zhi Pro Res Qua Res Acc Turns Passed 19971 | 151 911 728 2263 1343 1874 169 351 2419 641 43 948 1085 389 1202 242 450 288 630 213 266 47 466 748 488 478 1138 Spaces Moved 21342 | 92 454 344 1083 678 977 321 351 3651 1103 117 1609 1140 249 127 412 913 365 933 442 472 139 417 1512 1063 848 1530 Core 408 | 5 . . . . . . . . . . . . . . . . . . . . . . . . 90 313 Treads . | . . . . . . . . . . . . . . . . . . . . . . . . . . . Legs 3626 | 87 454 344 1083 678 977 . . . . . . . . . . . . . . . . . . . . 3 Wheels . | . . . . . . . . . . . . . . . . . . . . . . . . . . . Hover 262 | . . . . . . . . . . . . . . . . . . . . . . . . . . 262 Flight 17046 | . . . . . . 321 351 3651 1103 117 1609 1140 249 127 412 913 365 933 442 472 139 417 1512 1063 758 952 Fastest Speed 11 | 50 120 190 190 190 190 37 37 34 30 34 11 26 27 27 27 19 28 28 28 28 28 24 28 29 34 34 Average Speed 58 | 116 168 191 190 190 190 39 38 34 33 34 26 27 27 27 27 27 29 28 28 28 28 27 28 32 36 49 Slowest Speed 260 | 120 190 260 190 190 190 40 40 40 34 34 34 102 27 27 27 31 31 28 28 28 28 28 29 37 50 120 Overloaded Moves 42 | . . . . . . . . . . . 18 . . . . 20 . . . . . 4 . . . . Propulsion Burnouts 1 | . . . . . . . . . . . . . . . . 1 . . . . . . . . . . Robots Hopped 92 | . . . . . . 1 2 18 7 . 3 9 . . 4 7 . 2 . . . . 18 6 6 9 Potential Cave-ins 4 | . . . . . . . . . . . . . . . . 2 . . . . . . 2 . . . Cave-ins Triggered . | . . . . . . . . . . . . . . . . . . . . . . . . . . . Teleports 1 | . . . . . . . . . . . . . . . . . . . . . . . . . . 1 Exploration Rate (%) 60 | 5 71 82 54 98 81 12 95 83 30 82 47 82 78 77 37 37 92 31 67 59 63 62 49 93 20 45 Regions Visited 26 Branch Regions 13 Pre-discovered Areas 12 | . . 2 2 4 . . . 1 . . . . . . . . . . . . 3 . . . . . Known Exits Taken 14 | . . . . . . . . 1 . . 1 1 1 1 1 . . 1 1 1 1 1 1 1 1 . Unknown Exits Taken 6 | 1 1 1 1 1 1 . . . . . . . . . . . . . . . . . . . . . Scrap Searched 16 | . . 1 4 . 3 . . . . . . . . . . . . . 2 2 . 4 . . . . Spaces Dug 316 | . 1 9 15 . . . . 81 10 1 17 5 . . 12 19 . 25 12 17 . 34 19 16 10 13 Terrain Destroyed 838 | . 23 9 66 . . . . 183 45 1 39 56 . . 13 55 1 33 22 25 . 104 24 28 56 55 Melee 158 | . . . 14 . . . . 51 7 . 14 . . . 10 15 . 16 3 . . . 12 7 . 9 Projectile 255 | . 2 . 1 . . . . 50 4 1 4 7 . . 3 10 1 17 19 25 . 58 12 21 16 4 AOE 425 | . 21 9 51 . . . . 82 34 . 21 49 . . . 30 . . . . . 46 . . 40 42 Terrain Rammed . | . . . . . . . . . . . . . . . . . . . . . . . . . . . Walls Destroyed . | . . . . . . . . . . . . . . . . . . . . . . . . . . . Machines Disabled . | . . . . . . . . . . . . . . . . . . . . . . . . . . . Actions | -11 -10 -10 -10 -8 -8 -6 -6 -6 -5 -5 -5 -5 -5 -5 -5 -4 -4 -4 -4 -4 -4 -3 -3 -3 -2 -1 --------- Run | Yrd Mat Min Sub Rec Scr Fac Was Fac Fac Was Fac Ext Cet Arc Hub Fac Was Fac Upp Upp Zhi Pro Res Qua Res Acc Total 27386 | 112 539 403 1201 709 998 364 565 4566 1304 118 2019 1819 533 1250 488 1028 532 1243 508 580 145 699 1738 1157 984 1784 Wait 4482 | . 29 41 22 17 11 13 215 683 148 1 277 496 234 1093 43 52 140 242 37 84 . 213 144 38 88 121 Move 21146 | 91 453 343 1082 677 976 319 346 3617 1089 116 1602 1121 248 126 403 900 364 928 441 471 138 416 1480 1050 836 1513 Hop 81 | . . . . . . 1 2 15 7 . 3 9 . . 4 6 . 2 . . . . 13 6 5 8 Pick Up 87 | 4 14 3 3 1 3 3 . 6 2 . 8 3 5 . . 3 2 4 3 . 1 . 5 7 4 3 Fast Attach 112 | 7 1 3 1 . . 4 1 9 4 . 13 1 . 3 . 3 3 2 1 . 2 1 10 . 10 33 Attach 55 | . . . 1 1 . 6 . 4 3 . 4 3 . . . 5 3 . 1 . 1 . 1 6 5 11 Detach 27 | . . . . . . 1 . 1 2 . 4 . . 1 . 3 3 . . . . . . 1 5 6 Swap 92 | . 7 4 23 . 3 3 . 9 1 . 5 6 4 . 5 3 2 . . . 1 7 2 4 3 . Drop 112 | . 5 4 6 . 5 12 1 9 3 . 11 1 7 1 1 3 3 5 3 . 2 . 12 8 4 6 Fire 606 | 10 30 5 40 13 . . . 107 13 1 22 77 23 9 13 28 12 19 19 25 . 62 25 17 24 12 Melee 375 | . . . 23 . . 2 . 76 32 . 51 3 4 17 16 22 . 26 3 . . . 35 20 . 45 Ram 6 | . . . . . . . . . . . . 2 . . . . . . . . . . . . . 4 Kick 22 | . . . . . . . . . . . . . . . . . . . . . . . . . . 22 Crush . | . . . . . . . . . . . . . . . . . . . . . . . . . . . Escape Stasis 120 | . . . . . . . . 30 . . 19 45 . . . . . 15 . . . . 11 . . . Rewire 52 | . . . . . . . . . . . . 52 . . . . . . . . . . . . . . Trap . | . . . . . . . . . . . . . . . . . . . . . . . . . . . Miscellaneous 11 | . . . . . . . . . . . . . 8 . 3 . . . . . . . . . . . Route ------- -11/Scrapyard -10/Materials (discovered 3 exits: [*Mat x2] / *Min) -10/Mines (discovered 2 exits: [*Mat] / *Sub) -10/Subcaves (discovered 2 exits: [*Mat] / *Rec) -8/Recycling (discovered 2 exits: *Fac / *Scr) -8/Scraptown (discovered 2 exits: *Fac x2) -6/Factory -6/Waste -6/Factory (discovered 4 exits: *Fac x4) -5/Factory (discovered 4 exits: *Upp x2 / Ext x2) -5/Waste -5/Factory (discovered 5 exits: *Fac / Upp x2 / *Ext x2) -5/Extension (discovered 2 exits: *Fac / *Cet) -5/Cetus (discovered 2 exits: *Fac / *Arc) -5/Archives (discovered 3 exits: *Fac / *Hub x2) -5/Hub_04(d) (discovered 4 exits: *Fac x4) -4/Factory (discovered 2 exits: *Upp x2) -4/Waste -4/Factory (discovered 2 exits: *Upp x2) -4/Upper Caves -4/Upper Caves -4/Zhirov -3/Proximity Caves -3/Research (discovered 6 exits: *Res x3 / *Arm / *Qua x2) -3/Quarantine -2/Research (discovered 3 exits: *Acc / Tes x2) -1/Access (discovered 1 exit: Sur) History --------- Turn | Location | Event 3 | -11/Scrapyard | Discovered new exit (range 16) 152 | -11/Scrapyard | Entered Materials 153 | -10/Materials | Met a group of wandering Federalists 310 | -10/Materials | Build established: Mutant 685 | -10/Materials | Discovered new exit (range 8) 875 | -10/Materials | Repaired Aluminum Leg 944 | -10/Materials | Discovered new exit (range 4) 1043 | -10/Materials | Discovered new exit (range 9) 1063 | -10/Materials | Entered Mines 1064 | -10/Mines | Learned location of Storage (-8) 1235 | -10/Mines | A weapon hastily lodged in a ceiling crevice suddenly fell to the ground 1276 | -10/Mines | Found a damaged Exp. Sensor Array with a note attached 1280 | -10/Mines | Found Prototype Device 1565 | -10/Mines | Discovered new exit (range 7) 1589 | -10/Mines | Met a Derelict who couldn't figure out how to use a Trap Extractor 1765 | -10/Mines | Discovered new exit (range 10) 1791 | -10/Mines | Entered Subcaves 1791 | -10/Subcaves | Accompanied by 2 allies 1796 | -10/Subcaves | Led the pair of lost Derelicts to an unsafe place 1796 | -10/Subcaves | Discovered new exit (range 15) 1850 | -10/Subcaves | Learned location of 1 exit from Materials 1866 | -10/Subcaves | Shifting Twisted Machinery released Battle Cannon 1872 | -10/Subcaves | Shifting Twisted Machinery released Sub. Power Source 1940 | -10/Subcaves | Learned Materials emergency access door positions 2493 | -10/Subcaves | Shifting Twisted Machinery released Riot Gun 2508 | -10/Subcaves | Shifting Twisted Machinery released Battle Rifle 2611 | -10/Subcaves | A swath of the cavern ceiling suddenly collapsed 2630 | -10/Subcaves | Visited Clippyterm 2636 | -10/Subcaves | Learned location of Deep Caves (-6) 2636 | -10/Subcaves | Learned location of Extension (-5) 3358 | -10/Subcaves | Visited 4L-MR0's lab 3366 | -10/Subcaves | Learned location of 1 exit from Materials 3384 | -10/Subcaves | Found Flightbrick 3883 | -10/Subcaves | Discovered new exit (range 12) 4054 | -10/Subcaves | Entered Recycling 4381 | -8/Recycling | Build established: Scavenger-Mutant 5017 | -8/Recycling | Discovered new exit (range 13) 5348 | -8/Recycling | Scanned before Scraplab entrance 5377 | -8/Recycling | Entered Scraplab 5394 | -8/Recycling | Discovered new exit (range 2) 5397 | -8/Recycling | Entered Scraptown 5697 | -8/Scraptown | Visited UFD Registry 5697 | -8/Scraptown | Registered with UFD as "Shockflow" 5718 | -8/Scraptown | Build established: Mutant 5729 | -8/Scraptown | Visited Cave Peace 5807 | -8/Scraptown | Visited Symbiants 5887 | -8/Scraptown | Discovered new exit (range 11) 6271 | -8/Scraptown | Visited Cyclists 6295 | -8/Scraptown | Entered Cyclist Reading Room 6341 | -8/Scraptown | Visited SPCMW 6352 | -8/Scraptown | Visited IN-MT5's Study 6386 | -8/Scraptown | Visited Shadow of the Wyrm 6671 | -8/Scraptown | Visited LU-1G1's Boring Crew 6699 | -8/Scraptown | Visited Analyses Database 6743 | -8/Scraptown | Visited Scrapoid Pod Storage 6790 | -8/Scraptown | Visited Scrap Suit Storage 6821 | -8/Scraptown | Visited A0-MCA Data Center 6832 | -8/Scraptown | Given a B- rating by A0-MCA 6837 | -8/Scraptown | Found A0-MCA's Component Scanner 6876 | -8/Scraptown | Visited Science Testing Area 6908 | -8/Scraptown | Visited Curators Association 6959 | -8/Scraptown | Visited Chapter 10 7153 | -8/Scraptown | Met Optimus 7153 | -8/Scraptown | Accepted into 0bPrime 7267 | -8/Scraptown | Discovered new exit (range 3) 7271 | -8/Scraptown | Entered Factory 7271 | -6/Factory | Evolved 8 slots: Propulsion x3, Utility x4, Weapon x1 7274 | -6/Factory | Attached Flightbrick, gained temporary slots: Utility x3 7276 | -6/Factory | Identified Exp. Sensor Array 7403 | -6/Factory | Discovered new exit (range 15) 7440 | -6/Factory | Sucked down chute 7440 | -6/Factory | Entered Waste 7450 | -6/Waste | Spotted C-40 Crusher 7463 | -6/Waste | Warlord forces began an assault 7477 | -6/Waste | Spotted C-40 Crusher 7491 | -6/Waste | Spotted C-40 Crusher 7492 | -6/Waste | Spotted C-40 Crusher 7496 | -6/Waste | Spotted C-40 Crusher 7504 | -6/Waste | Allies destroyed C-40 Crusher 7509 | -6/Waste | Allies destroyed C-40 Crusher 7520 | -6/Waste | Spotted C-40 Crusher 7520 | -6/Waste | Allies destroyed C-40 Crusher 7530 | -6/Waste | Allies destroyed C-40 Crusher 7536 | -6/Waste | Allies destroyed C-40 Crusher 7542 | -6/Waste | Allies destroyed C-40 Crusher 7560 | -6/Waste | Lost 7 allies 7705 | -6/Waste | Discovered new exit (range 10) 7791 | -6/Waste | Entered Factory 7791 | -6/Factory | Accompanied by 9 allies 8071 | -6/Factory | Lost 3 allies 8325 | -6/Factory | Lost 3 allies 8955 | -6/Factory | Loaded intel: 8 recycling unit locations 8980 | -6/Factory | Learned location of Protoforge (-2) 9033 | -6/Factory | Discovered new exit (range 15) 9038 | -6/Factory | Identified exit to Factory 9205 | -6/Factory | Spotted B-75 Beast 9252 | -6/Factory | Discovered exit to Factory (range 14) 9466 | -6/Factory | Discovered exit to Factory (range 15) 9541 | -6/Factory | First assault squad dispatched 9866 | -6/Factory | Repaired Broken Hardcell Cannon 10014 | -6/Factory | Discovered exit to Factory (range 15) 10200 | -6/Factory | Central database locked down 10210 | -6/Factory | Entered another Factory area 10210 | -5/Factory | Evolved 2 slots: Propulsion x1, Utility x1 10465 | -5/Factory | Loaded intel: 8 recycling unit locations 10510 | -5/Factory | First assault squad dispatched 10533 | -5/Factory | Identified exit to Upper Caves 10533 | -5/Factory | Identified exit to Extension 10851 | -5/Factory | Sucked down chute 10851 | -5/Factory | Entered Waste 10854 | -5/Waste | Spotted C-40 Crusher 10865 | -5/Waste | Met Warlord forces unprepared to attack 10866 | -5/Waste | EMP discharged 10867 | -5/Waste | Spotted C-40 Crusher 10873 | -5/Waste | Allies destroyed C-40 Crusher 10875 | -5/Waste | Spotted C-40 Crusher 10882 | -5/Waste | Spotted C-40 Crusher 10884 | -5/Waste | Spotted C-40 Crusher 10890 | -5/Waste | Spotted C-40 Crusher 10890 | -5/Waste | Discovered new exit (range 11) 10894 | -5/Waste | Identified exit to Factory 10894 | -5/Waste | Entered Factory 10964 | -5/Factory | Discovered new exit (range 2) 10964 | -5/Factory | Identified exit to Factory 11012 | -5/Factory | Loaded intel: 8 recycling unit locations 11180 | -5/Factory | Garrison activated, responded to threat 11305 | -5/Factory | Discovered exit to Extension (range 6) 11520 | -5/Factory | Spotted B-75 Beast 11546 | -5/Factory | System corruption reached 10% 11679 | -5/Factory | Cargo convoy interrupted 11764 | -5/Factory | Central database locked down 11842 | -5/Factory | Entered Extension 11987 | -5/Extension | Build established: Hacker-Sprinter 12097 | -5/Extension | Rescued A7 12144 | -5/Extension | Rescued a captive Derelict 12158 | -5/Extension | Rescued a captive Derelict 12159 | -5/Extension | Rescued a captive Derelict 12181 | -5/Extension | Rescued a captive Derelict 12183 | -5/Extension | Rescued a captive Derelict 12341 | -5/Extension | Spotted B-75 Beast 12509 | -5/Extension | Allies destroyed B-75 Beast 12510 | -5/Extension | Spotted B-75 Beast 12523 | -5/Extension | Allies destroyed B-75 Beast 12553 | -5/Extension | Lost 3 allies 12567 | -5/Extension | Disrupted transfer network 12596 | -5/Extension | Rescued a captive Derelict 12670 | -5/Extension | Lost 3 parts (1p1n1u) 12745 | -5/Extension | Rescued a captive Derelict 12746 | -5/Extension | Rescued a captive Derelict 12782 | -5/Extension | Discovered exit to Factory (range 10) 12782 | -5/Extension | Discovered new exit (range 6) 12795 | -5/Extension | Identified exit to Cetus 12927 | -5/Extension | Entered Cetus 12927 | -5/Cetus | Accompanied by 17 allies (A7) 12932 | -5/Cetus | Acquired a Cetus Manufacturing Module code from A7 12941 | -5/Cetus | Spotted Cetus Guard 12941 | -5/Cetus | Spotted Cetus Guard 12943 | -5/Cetus | Destroyed Cetus Guard 12945 | -5/Cetus | Spotted Cetus Guard 12957 | -5/Cetus | Allies destroyed Cetus Guard 12959 | -5/Cetus | Allies destroyed Cetus Guard 12963 | -5/Cetus | Allies destroyed Cetus Guard 12995 | -5/Cetus | Started Cetus Manufacturing Module 13015 | -5/Cetus | Escorted A7 to Cetus Mainframe 13018 | -5/Cetus | Build established: Commander-Sprinter 13020 | -5/Cetus | Manufactured an Enhanced Grunt 13045 | -5/Cetus | Manufactured an Enhanced Grunt 13070 | -5/Cetus | Manufactured an Enhanced Grunt 13095 | -5/Cetus | Manufactured an Enhanced Grunt 13120 | -5/Cetus | Manufactured an Enhanced Grunt 13145 | -5/Cetus | Discovered new exit (range 16) 13182 | -5/Cetus | Spotted Cetus Guard 13183 | -5/Cetus | Spotted Cetus Guard 13192 | -5/Cetus | Spotted Cetus Guard 13194 | -5/Cetus | Spotted Cetus Guard 13195 | -5/Cetus | Destroyed Cetus Guard 13211 | -5/Cetus | Destroyed Cetus Guard 13212 | -5/Cetus | Allies destroyed Cetus Guard 13219 | -5/Cetus | Destroyed Cetus Guard 13225 | -5/Cetus | Discovered exit to Factory (range 15) 13230 | -5/Cetus | Met Revision 17 13249 | -5/Cetus | Lost 6 allies 13278 | -5/Cetus | Murdered A7 13281 | -5/Cetus | Extracted ID and sensor layout for unrecognized location from A7's data core 13282 | -5/Cetus | Found Med. Regenerative Plating 13287 | -5/Cetus | Identified exit to Archives 13316 | -5/Cetus | Entered Archives 13316 | -5/Archives | Accompanied by 12 allies 13382 | -5/Archives | Discovered new exit (range 16) 13409 | -5/Archives | Discovered exit to Factory (range 15) 13693 | -5/Archives | Discovered new exit (range 15) 13697 | -5/Archives | Identified exit to Hub_04(d) 14518 | -5/Archives | Entered Hub_04(d) 14518 | -5/Hub_04(d) | Accompanied by 11 allies 14743 | -5/Hub_04(d) | Network Hub disabled 14751 | -5/Hub_04(d) | Spotted Lightning 14751 | -5/Hub_04(d) | Spotted Lightning 14751 | -5/Hub_04(d) | Spotted Lightning 14760 | -5/Hub_04(d) | Entered Factory 14760 | -4/Factory | Evolved 2 slots: Utility x1, Weapon x1 14789 | -4/Factory | Lost 7 allies 14936 | -4/Factory | Loaded intel: 8 recycling unit locations 14996 | -4/Factory | Discovered new exit (range 15) 15031 | -4/Factory | Build established: Hacker-Sprinter 15066 | -4/Factory | Spotted B-86 Titan 15186 | -4/Factory | Discovered new exit (range 15) 15205 | -4/Factory | Destroyed 9 combat bots 15210 | -4/Factory | Sucked down chute 15210 | -4/Factory | Entered Waste 15211 | -4/Waste | Met a frightened Derelict 15217 | -4/Waste | Spotted C-40 Crusher 15218 | -4/Waste | Spotted C-40 Crusher 15220 | -4/Waste | Spotted C-40 Crusher 15236 | -4/Waste | Spotted C-40 Crusher 15254 | -4/Waste | Spotted C-40 Crusher 15261 | -4/Waste | Warlord forces began an assault 15281 | -4/Waste | Spotted C-40 Crusher 15301 | -4/Waste | Allies destroyed C-40 Crusher 15305 | -4/Waste | Allies destroyed C-40 Crusher 15308 | -4/Waste | Allies destroyed C-40 Crusher 15321 | -4/Waste | Allies destroyed C-40 Crusher 15326 | -4/Waste | Destroyed C-40 Crusher 15343 | -4/Waste | Allies destroyed C-40 Crusher 15351 | -4/Waste | Lost 7 allies 15436 | -4/Waste | Discovered new exit (range 22) 15456 | -4/Waste | Identified exit to Factory 15498 | -4/Waste | Entered Factory 15498 | -4/Factory | Accompanied by 12 allies 15645 | -4/Factory | Lost 3 allies 15648 | -4/Factory | Build established: Hacker-Scout 15669 | -4/Factory | Loaded intel: 8 recycling unit locations 15770 | -4/Factory | Identified exit to Upper Caves 15956 | -4/Factory | Spotted B-86 Titan 16128 | -4/Factory | Entered Upper Caves 16141 | -4/Upper Caves | Spotted B-86 Titan 16321 | -4/Upper Caves | Discovered new exit (range 14) 16341 | -4/Upper Caves | Identified exit to Upper Caves 16341 | -4/Upper Caves | Entered another Upper Caves area 16570 | -4/Upper Caves | Learned 4 Research zone layouts 16589 | -4/Upper Caves | Learned location of 1 exit from Research 16603 | -4/Upper Caves | Discovered new exit (range 18) 16607 | -4/Upper Caves | Identified exit to Zhirov 16607 | -4/Upper Caves | Entered Zhirov 16607 | -4/Zhirov | Discovered new exit (range 3) 16613 | -4/Zhirov | Met Zhirov 16621 | -4/Zhirov | Learned location of Quarantine (-3) 16621 | -4/Zhirov | Learned location of Testing (-2) 16623 | -4/Zhirov | Zhirov requested help retrieving the SGEMP Prototype 16628 | -4/Zhirov | Found Alien Artifact 16628 | -4/Zhirov | Identified Integrated Reactor 16628 | -4/Zhirov | Installed Integrated Reactor, increased core energy generation (+10) 16641 | -4/Zhirov | Found Alien Artifact 16652 | -4/Zhirov | Identified exit to Proximity Caves 16654 | -4/Zhirov | Entered Proximity Caves 16656 | -3/Proximity Caves | Attracted the attention of an 0b10 checkpoint 16665 | -3/Proximity Caves | Spotted B-86 Titan 16844 | -3/Proximity Caves | Found DCF Scrap (16 items) 16929 | -3/Proximity Caves | Build established: Hacker-Ninja 17097 | -3/Proximity Caves | Discovered new exit (range 4) 17120 | -3/Proximity Caves | Identified exit to Research 17120 | -3/Proximity Caves | Entered Research 17120 | -3/Research | Evolved 2 slots: Power x1, Utility x1 17121 | -3/Research | Identified exit to Research 17154 | -3/Research | Discovered new exit (range 19) 17159 | -3/Research | Identified exit to Armory 17314 | -3/Research | Central database locked down 17320 | -3/Research | Revision forces began assault on 0b10 17390 | -3/Research | Lost 3 allies 17391 | -3/Research | Discovered exit to Research (range 8) 17511 | -3/Research | Spotted B-86 Titan 17571 | -3/Research | Met up with Revision 17++ 17581 | -3/Research | Identified exit to Quarantine 17625 | -3/Research | Found Exp. Targeting Computer 17774 | -3/Research | Repaired Broken Cld. Nuclear Pulse Thruster 17806 | -3/Research | Repaired Adv. Reaction Control System 17820 | -3/Research | Research terminal network offline 17868 | -3/Research | Entered Quarantine 17913 | -3/Quarantine | Spotted Alpha 7 18085 | -3/Quarantine | Unchained authorized (6S-H0T) 18111 | -3/Quarantine | Found Alien Artifact 18112 | -3/Quarantine | Identified Subatomic Replicator 18112 | -3/Quarantine | Used Subatomic Replicator to create Alien Artifact 18206 | -3/Quarantine | Lost 5 parts (1p2n1u1w) 18356 | -3/Quarantine | Entered Research 18356 | -2/Research | Evolved 2 slots: Utility x1, Weapon x1 18374 | -2/Research | Lost 3 parts (1n2u) 18550 | -2/Research | Spotted B-90 Cyclops 18593 | -2/Research | Lost 3 parts (1n2u) 18617 | -2/Research | Identified exit to Testing 18821 | -2/Research | Discovered new exit (range 14) 18824 | -2/Research | Core integrity fell below 50% 18825 | -2/Research | Build established: Mutant 18832 | -2/Research | Core integrity fell below 20% 18833 | -2/Research | Identified exit to Access 18834 | -2/Research | Entered Access 18834 | -1/Access | Evolved 2 slots: Propulsion x2 18850 | -1/Access | Lost 5 parts (3n2u) 19014 | -1/Access | Core integrity fell below 50% 19018 | -1/Access | Lost 4 parts (1n3u) 19334 | -1/Access | Search patrols dispatched 19402 | -1/Access | Build established: Scout 19569 | -1/Access | Lost 4 parts (1p2n1u) 19600 | -1/Access | Core integrity fell below 20% 19633 | -1/Access | Lost 3 parts (2p1n) 19705 | -1/Access | Identified Supercharged TR 19705 | -1/Access | Warped through subspace 19736 | -1/Access | Lost 10 parts (1p5n2u2w) 19815 | -1/Access | Identified exit to Surface 19834 | -1/Access | First assault squad dispatched 19972 | -1/Access | Destroyed by G-73 Enforcer with Phase Gun Last Messages --------------- 19885_ Acquired Field Propulsion Array+. 19887_ Acquired Adv. System Shield. 19889_ Acquired Field Propulsion Array+. 19907_ Connecting with Terminal... 19907_ ALERT: Suspicious activity at Terminal A001. Dispatching Investigation squad. 19927_ Acquired Unknown Protection. 19927_ Identified Imp. Power Shielding. 19941_ 7E2TUOI UVG ARSB3RGDTYAA 19952_ C-45 Heavy ARC bursts open, deploying its payload. 19952_ G-73 Enforcer unfolds itself. 19952_ L-61 Swordsman unfolds itself. 19952_ G-73 Enforcer unfolds itself. 19952_ Critical hit (Burn: +37). 19959_ E-15 Imp suffers critical hit (Smash). 19959_ Destroyed Unknown Protection. 19959_ E-15 Imp system corrupted by crushing effect. 19965_ Com. Linear Accelerator blown off. 19965_ E-15 Imp destroyed. 19968_ Acquired Com. Linear Accelerator. Map ----- +----------------------------------------------------+ | ??????????????????############### # " | | ????????????????????????????????# ########## | | ????????????????????????????????# #?# | | ????????????????????????????????# #?# ! | | ????????????????????????????????# #?# =[ | | ????????????????????????????????# #??? =[ | | ????????????????????????????????# #????? | | ????????????????????????????????# #??????? | | ????????????????????????????????# ########## | | ????????????????????????????????# | | ????????????????????????????????# | | ????????????????????????????????# | | ????????????????????????????????# | | ???????????????????????########## | | ???????????????????????# # | | ??????#####????????????# # | | ?????? H ???????????# ################## | | ?????? ??????????k #????????????????? | | ??????# ###/#######???#u #????????????????? | | ??????# ## #???# #????????????????? | | ??????# ## #???# #????????????????? | | ??????# ## " #???#A #????????????????? | | ??????# ## """ #####! #????????????????? | | ??????# ## """ + +%= #????????????????? | | ####### ## " #####= #????????????????? | | ## #???# @ #????????????????? | | ## #???# #????????????????? | | "" #???# g #????????????????? | | ###########???# g #????????????????? | | #?????????????# #????????????????? | | #?????????????# g ################## | | #?####????????###l####### # | | #?#""############ #?????# # | | """ """ #??#u # #?????# " " # | | """T""" #??# # #######! """ """ # | | ####### #??# # # """ """ # | | ??????# #??# # # " " # | | ??????# #??# # # + | | ??????# #??# !!! u u + # | | ??????# #??# !! # # """"T"""" # | | ??????+ #??# !!! # # """"""""""" # | | ??????# #??# "+% ################# | | ??????# #??# # ########## | | ??????# #??# # | | ??????# #??# # | | ??????# #??########"##### | | ??????# #?????????###???# | | ??????? #???????????????# | | ??????? #???????????????# " " | | ??????? #???????????????######## """ """ | +----------------------------------------------------+ Best States ------------- Heat Dissipation 52 Energy Generation 45 Energy Capacity 315 Matter Stores 300 Matter Capacity 300 Sight Range 23 Robot Scan Range 18 Terrain Scan Density 10 Jamming Range 16 Corruption Containment 24 Armor Coverage 250 Power Shielding 66 Propulsion Shielding 66 Utility Shielding 66 Evasion (%) 76 Targeting Accuracy 12 Melee Accuracy 18 Target Analysis 8 Offensive Hacking 14 Defensive Hacking 26 Item Schematics ----------------- Airjet | -8/Recycling | Hacked Recoil Stabilizer | -8/Recycling | Hacked Adv. Remote Datajack | -5/Factory | Hacked Mni. Grenade Launcher | -5/Factory | Scanalyzed Adv. Shield Generator | -5/Hub_04(d) | Hacked Biometal Heavy Treads | -4/Factory | Hacked Assault Drone Bay | -4/Zhirov | Free Exp. Heat Sink | -4/Zhirov | Free Exp. Optical Array | -4/Zhirov | Free Imp. Arc Thrower | -4/Zhirov | Free Centrium Leg | -3/Research | Hacked Robot Schematics ------------------ B-36 Bruiser | -8/Recycling | Hacked Fabricated ------------ Nothing Repaired ---------- Aluminum Leg | 64% | -10/Materials Hardcell Cannon | 30% | -6/Factory | Broken Cld. Nuclear Pulse Thruster | 27% | -3/Research | Broken Adv. Reaction Control System | 12% | -3/Research Studied --------- Lgt. Deuterium Engine | -6/Factory | Hacked Magnetic Acceleration Cannon | -5/Factory | Hacked Lgt. Fission Core | -5/Factory | Hacked Mni. Grenade Launcher | -5/Factory | Hacked Mic. Antimatter Reactor | -3/Research | Hacked Field Propulsion Array | -3/Research | Hacked Alien Tech Used ----------------- Integrated Reactor Subatomic Replicator Supercharged TR Achievements -------------- Bob, First Of His Name Challenges ------------ None Game ------ Seed RocketZioniteBiocell Manual? 0 Play Time 04:42:05 Cumulative 465.1 hours Start 2025.11.28 @ 19:22:45 End 2025.11.29 @ 11:51:47 Sessions 5 Manual Loads 0 Difficulty Rogue Special Mode None Game No. 169 Rogue 148 Adventurer 21 Explorer 0 Win Type - Total 23 Types 13/1/5/1/0/0/0/2/0/1 Lore% 66 Gallery% 76 Achievement% 63 Wizard Run 0 Options --------- Layout 1 ASCII 0 Keyboard 0 Movement Mouse Keybinds 0 Fullscreen 2 Font 32/SmallcapsGlow Map View 77x35 Zoom Use 0% Tactical HUD 1 Map Filters NONE Filters NONE Steam 1 RUN: e7fe6b3f-2583-4725-8f4e-30944da84f07